{"text_format":"1","workbook":"xlsx","n_sheets":2,"sheets":["PRZEDMIAR(wartości)","TER"],"not_rendered":{"charts":0,"images":0,"macros":0,"external_links":0,"defined_names":5,"comments":0,"pivot_tables":0},"unopened":[],"bounds":{"document_bytes":16777216,"sheet_cells":100000,"rows_first":2000,"rows_last":500,"rows_between":2000,"halvings":0,"cell_chars":16384,"cell_head_chars":4096},"cells_cut":0,"cells_raw":0,"read":"whole","date_system":"1900"}

{"sheet":"PRZEDMIAR(wartości)","index":0,"n_rows":127,"n_cols":9,"rows_kept":127,"cut":false,"hidden":true,"merged":[[126,4,126,6],[83,0,86,0],[83,1,86,1],[83,6,85,6],[83,7,85,7],[124,4,124,6],[125,4,125,6],[29,0,32,0],[29,1,32,1],[29,6,31,6],[29,7,31,7],[41,0,46,0],[41,1,46,1],[41,6,45,6],[41,7,45,7],[22,7,25,7],[0,0,0,7],[9,0,12,0],[9,1,12,1],[9,6,11,6],[9,7,11,7],[14,0,15,0],[14,1,15,1],[22,0,26,0],[22,1,26,1],[22,6,25,6]]}
[]
["LP","Pozycja STWiORB","Rodzaj robót","Jednostka obmiarowa","Przedmiar","Ilość jednostek","Cena [zł]","Wartość [zł]"]
[null,"D-01.00.00","ROBOTY PRZYGOTOWAWCZE"]
[null,"D-01.01.01","Odtworzenie trasy i punktów wysokościowych"]
[1,"kalkulacja własna","Roboty pomiarowe przy liniowych robotach ziemnych wraz z robotami pomiarowymi obiektu oraz z inwentaryzacją powykonawczą","1kpl.",1,1,0,{"$f":"G5*F5","v":0},1]
[null,"D-01.02.03","Wyburzenie obiektów budowlanych i inżynierskich"]
[null,null,"UWAGA: Podane ilości i zakres robót rozbiórkowych mają charakter szacunkowy"]
[2,null,"Demontaż stalowych elementów wyposażenia - wykopanie i/lub użycie palnika acetylenowo-tlenowego balustrady","1t / 1Mg","{50}*(24,85+14,75+3,30+2*1,50)*0,001",{"$f":"I8","v":2.2949999999999999},0,0,2.2949999999999999]
[3,null,"Reczny zaladunek i wyladunek materialów budowlanych na samochody lub przyczepy skrzyniowe - transport elementów mostowych stalowych","1t / 1Mg",{"$f":"E8","v":"{50}*(24,85+14,75+3,30+2*1,50)*0,001"},{"$f":"I9","v":2.2949999999999999},0,{"$f":"G9*F9","v":0},2.2949999999999999]
[4,null,"Rozebranie elementów żelbetowych"]
[null,null," - kapy","1m3","({0,41}+{0,35})*12,40",{"$f":"I11","v":9.4240000000000013},null,null,9.4240000000000013]
[null,null," - gzyms skrzydła ","1m3","({2,50}+{0,70})*0,35",1.1199999999999999,null,null,1.1199999999999999]
[null,null,"RAZEM","1m3",null,{"$f":"F11+F12","v":10.544},0,{"$f":"G13*F13","v":0}]
[5,null,"Rozbiórka izolacji z papy","1m2","12*9,65",115.80000000000001,0,{"$f":"G14*F14","v":0},115.80000000000001]
[6,null,"Rozbiórka elementów konstrukcji betonowych niezbrojonych"]
[null,null," - beton ochronny 6cm","1m3","12*9,65*0,06",6.9480000000000004,0,{"$f":"G16*F16","v":0},6.9480000000000004]
[7,null,"Rozebranie mechaniczne nawierzchni na obiekcie (przyjęto warstwy bitumiczne gr. 9cm)","1m2","7*12",84,0,0,84]
[8,null,"Rozebranie mechaniczne nawierzchni z mieszanek mineralno-bitumicznych: dodatek za każdy 1 cm grubości ponad 9 cm   (Krotność= 3,5)","1m2","7*12",84,0,0,84]
[9,null,"Rozebranie mechaniczne konstrukcji nawierzchni na dojazdach (przyjęto warstwy bitumiczne gr. 15cm)","1m2","(20,00+9,00)*7",203,0,0,203]
[10,null,"Rozebranie mechaniczne nawierzchni z mieszanek mineralno-bitumicznych: dodatek za każdy 1 cm  (Krotność= 5)","1m2",{"$f":"E19","v":"(20,00+9,00)*7"},203,0,0,203]
[11,null,"Rozbiórka mechaniczna podbudowy o grubosci 20cm z tlucznia lub zuzla wielkopiecowego","1m2",{"$f":"E20","v":"(20,00+9,00)*7"},203,0,0,203]
[12,null,"Rozbiórka mechaniczna podbudowy z tlucznia lub zuzla wielkopiecowego - dalsze 2cm grubosci   (Krotność= 5)","1m2",{"$f":"E21","v":"(20,00+9,00)*7"},203,0,0,203]
[13,null,"Wywiezienie gruzu z rozbiórek samochodem samowyładowczym z załadunkiem mechanicznym na odległość 15km wraz z opłatą za utylizację gruzu","1m3"]
[null,null," - żelbet + beton","1m3",{"$f":"\"(\"&F13&\"+\"&F16&\")*1,3\"","v":"(10,544+6,948)*1,3"},22.739600000000003,null,null,22.739600000000003]
[null,null," - izolacja z papy","1m3",{"$f":"F14&\"*0,01\"","v":"115,8*0,01"},1.1579999999999999,null,null,1.1579999999999999]
[null,null," - destrukt asfaltowy i podbudowa","1m3",{"$f":"F17&\"*0,09+\"&F19&\"*0,15+\"&F21&\"*0,20\"","v":"84*0,09+203*0,15+203*0,20"},78.61,null,null,78.61]
[null,null,"RAZEM","1m3",null,{"$f":"F24+F25+F26","v":102.5076},0,{"$f":"G27*F27","v":0}]
[null,"D-02.00.00","ROBOTY ZIEMNE"]
[null,"D-02.01.01","Wykonanie wykopów w gruntach kat. I-IV z zabezpieczeniem"]
[14,null,"Roboty ziemne ręczne z transportem urobku samochodami samowyładowczymi o ładowności 5-10 t na odległość do 1 km: grunt kat. III","1m3"]
[null,null," - wykopy przy obiekcie","1m3","2*(5,20)*8,60",{"$f":"I31","v":89.44},null,null,89.44]
[null,null," - wykopy pod krawężnik","1m3","2*20*0,4*0,5+2*10*0,4*0,5",12,null,null,12]
[null,null,"RAZEM","1m3",null,{"$f":"SUM(F31:F32)","v":101.44},0,{"$f":"G33*F33","v":0}]
[null,"D-02.03.01","Wykonanie nasypów"]
[15,null,"Formowanie i zagęszczanie nasypów z ziemi dowożonej samochodami samowyładowczymi: grunt kat. III-IV + zakup kruszywa   \n - zasypka za przyczółkiem","1m3","2*(0,6+0,58)*8,60",{"$f":"I35","v":20.295999999999999},0,{"$f":"G35*F35","v":0},20.295999999999999]
[16,null,"Zagęszczenie uprzednio rozplantowanego warstwami gruntu w nasypie zagęszczarkami, w gruncie sypkim,\nkategorii : I-III","1m3",{"$f":"E35","v":"2*(0,6+0,58)*8,60"},20.295999999999999,0,0,20.295999999999999]
[17,null,"Umocnienie poboczy klińcem, warstwa gr. 10cm","1m3","1*0,8*16",12.8,0,0,12.8]
[null,"D-04.00.00","PODBUDOWY"]
[null,"D-04.00.00","Koryto z profilowaniem i zagęszczeniem"]
[18,null,"Ręczne wykonanie koryt głębokości 20cm na całej szerokości jezdni i chodników w gruncie kategorii I-II","1m2","(9,0+20,0)*8,60",249.39999999999998,0,0,249.39999999999998]
[null,"D-04.03.01","Oczyszczenie i skropienie warstw konstrukcyjnych"]
[19,null,"Oczyszczenie mechaniczne nawierzchni drogowej i skropienie nawierzchni drogowych asfaltem","1m2",null,null,null,null,{"$error":"#VALUE!"}]
[null,null," - podbudowa z kruszywa","1m2","16,0*8,60",{"$f":"I43","v":137.6},null,null,137.6]
[null,null," - podbudowa zasadnicza","1m2","2*4,0*7,0+(5,8+20)*7",236.6,null,null,236.6]
[null,null," - warstwa wiążąca","1m2","41,5*7",290.5,null,null,290.5]
[null,null," - sfrezowana warstwa bitumiczna","1m2","2*7,0*0,5",7,null,null,7]
[null,null,"RAZEM","1m2",null,{"$f":"SUM(F42:F46)","v":671.7},0,{"$f":"G47*F47","v":0}]
[null,"D-04.05.01","Warstwa wzmacniająca podłoże z gruntu lub kruszywa stabilizowango cementem"]
[20,null,"Podbudowy z kruszywa łamanego stabilizowanego mechanicznie 0/31,5mm - podbudowa grubości 20cm pod nawierzchnię jezdni","1m2","7,40*16,0",{"$f":"I49","v":118.4},0,{"$f":"G49*F49","v":0},118.4]
[null,"D-04.04.02","Podbudowa z kruszywa stabilizowanego mechanicznie"]
[21,null,"Podbudowy z kruszywa łamanego stabilizowanego mechanicznie 0/31,5mm - podbudowa grubości 20cm","1m2","7,40*16,0",{"$f":"I51","v":118.4},0,{"$f":"G51*F51","v":0},118.4]
[null,"D-04.07.01","Podbudowa zasadnicza z betonu asfaltowego"]
[22,null,"Podbudowy z betonu asfaltowego AC 16P o grubosci warstwy 7cm wykonywane mechanicznie","1m3","7,40*16,0*0,07",{"$f":"I53","v":8.288000000000002},0,{"$f":"G53*F53","v":0},8.288000000000002]
[null,"D-05.00.00","NAWIERZCHNIE"]
[null,"D-05.03.05","Nawierzchnie z asfaltu twardolanego - warstwa wiążąca"]
[23,null,"Wykonanie warstwy wiążącej z betonu asfaltowego AC 16W o grubości 5cm","1m2","7,40*(20,0+6,0)",{"$f":"I56","v":192.4},0,{"$f":"G56*F56","v":0},192.4]
[24,null,"Ułożenie siatki zbrojeniowej z włókien szklanych wstępnie przesączona asfaltem o wytrzymałości na rozciąganie > 100 kN/m i maksymalnym wydłużeniu przy zerwaniu 3% - siatka na połączeniu starej i nowej nawierzchni oraz dylatacji","1m2","4*7,40*1",29.6,0,0,29.6]
[null,"D-05.03.13","Nawierzchnie z asfaltu twardolanego - warstwa ścieralna"]
[25,null,"Warstwa scieralna z asfaltu twardolanego o grubosci 4cm","1m2",{"$f":"E56","v":"7,40*(20,0+6,0)"},{"$f":"I59","v":192.4},0,{"$f":"G59*F59","v":0},192.4]
[null,"D-07.00.00","URZĄDZENIA BEZPIECZEŃSTWA RUCHU"]
[null,"D-07.01.01","Oznakowanie poziome - stałe"]
[26,null,"Oznakowanie poziome jezdni farba: linie segregacyjne i krawedziowe ciagle malowane recznie, linia w osi","1m2","41,50*0,12",{"$f":"I62","v":4.9799999999999995},0,{"$f":"G62*F62","v":0},4.9799999999999995]
[null,"D-07.02.01","Oznakowanie pionowe - tymczasowe"]
[27,null,"Montaż, utrzymanie i demontaż oznakowania pionowego na czas trwania robót przy obiekcie i na trasie objazdu wraz z ustawieniem i demontażem tymczasowych barier oddzielających","ryczałt"]
[null,"M-23.00.00","USTRÓJ NOŚNY"]
[null,"M-23.51.02","Wzmocnienie przęsła betonowego poprzez pogrubienie płyty pomostu"]
[28,null,"Wykonanie warstwy sczepnej na belkach Gromnik","1m2","9,65*12,0",{"$f":"I67","v":115.80000000000001},0,{"$f":"G67*F67","v":0},115.80000000000001]
[29,null,"Przygotowanie i montaż zbrojenia płyty pomostu wraz z wywierceniem otworów i wklejeniem łączników - stal A-IIIN (RB500W)","1t / 1Mg",0.53100000000000003,0.53100000000000003,0,0,0.53100000000000003]
[30,null,"Przygotowanie na budowle zbrojenia z prętów o średnicy 10-14mm dla płyt współpracujących z dźwigarami stalowymi lub prefabrykowanymi","1t / 1Mg",2.9119999999999999,2.9119999999999999,0,0,2.9119999999999999]
[31,null,"Przygotowanie na budowle zbrojenia z prętów o średnicy 16-32mm dla płyt współpracujących z dźwigarami stalowymi lub prefabrykowanymi","1t / 1Mg",1.569,1.569,0,0,1.569]
[32,null,"Montaż zbrojenia z prętów o średnicy 10-14mm płyt współpracujących z dźwigarami stalowymi lub\nprefabrykowanymi","1t / 1Mg",{"$f":"E69","v":2.9119999999999999},2.9119999999999999,0,0,2.9119999999999999]
[33,null,"Montaż zbrojenia z prętów o średnicy 16-32mm płyt współpracujących z dźwigarami stalowymi lub\nprefabrykowanymi","1t / 1Mg",{"$f":"E70","v":1.569},1.569,0,0,1.569]
[34,null,"Betonowanie nadbetonu z betonu C25/30 w deskowaniu tradycyjnym","1m3","(1,59)*12+(0,37)*8,6",22.262,0,0,22.262]
[35,null,"Czyszczenie strumieniowo-ścierne powierzchni betonowej z oczyszczeniem i zabezpieczeniem odsłoniętego zbrojenia","1m2","9,65*12+2*1,75+2*1,10",121.50000000000001,0,0,121.50000000000001]
[36,null,"Zabezpieczenie istniejących kabli energetycznych rurami ochronnymi dwudzielnymi z PCW o średnicy do 200mm","m","2*23,70+2*15,50",78.400000000000006,0,0,78.400000000000006]
[37,null,"Montaż kotew kap chodnikowych","szt.","34+18",52,0,0,52]
[null,"M-26.00.00","USTRÓJ NOŚNY"]
[null,"M-26.01.02","Odwodnienie izolacji pomostu obiektu mostowego"]
[38,null,"Wiercenie otworów o średnicy 60mm wiertnicami diamentowymi w konstrukcjach żelbetowych - Wiercenie otworów pod sączki","1cm","5*(55)",{"$f":"I79","v":275},0,{"$f":"G79*F79","v":0},275]
[39,null,"Sączki odwadniające izolację płyty pomostu średnicy 50mm z tworzywa","1szt.",8,8,0,0,8]
[40,null,"Wykonanie warstwy drenującej podłużnej i poprzecznej z kruszywa o uziarnieniu 4-8mm z lepiszczem żywicznym - podłużny i poprzeczny","1m2","(2*12,40)*0,15+(7,70)*0,15",4.875,0,0,4.875]
[null,"M-27.00.00","HYDROIZOLACJA"]
[null,"M-27.01.01","Izolacja bitumiczna \"na zimno\""]
[41,null,"Wykonanie epoksydowo-bitumicznej hydroizolacji powierzchni betonowych podpór \n- na zimno (3 warstwy)","1m2"]
[null,null," - odsłonięte ściany i skrzydła przyczółków","1m2","15,0*1,5",{"$f":"I85","v":22.5},null,null,22.5]
[null,null," - płyta przejściowa","1m2","2*((2*1,35)+(8,2)*0,3)",10.32,null,null,10.32]
[null,null,"RAZEM","1m2",null,{"$f":"SUM(F85:F86)","v":32.82},0,{"$f":"G87*F87","v":0}]
[null,"M-27.02.01","Izolacja z papy zgrzewalnej"]
[42,null,"wykonannie izolacji z papy termozgrzewalnej - płyta pomostu i płyta przejściowa","1m2","2*(32,70)+(96)",{"$f":"I89","v":161.4},0,{"$f":"G89*F89","v":0},161.4]
[43,null,"Wykonanie warstwy ochronnej pod kapami chodnikowymi z papy asfaltowej","1m2","14+16",30,0,0,30]
[null,"M-28.00.00","WYPOSAŻENIE POMOSTU"]
[null,"M-28.01.01","Krawężniki kamienne"]
[44,null,"Montaż krawężników 20x20cm z kotwieniem prętami wklejanymi w wywiercone otwory wraz z uszczelnieniem styków","1m","2*12,40",{"$f":"I93","v":24.8},0,{"$f":"G93*F93","v":0},24.8]
[45,null,"Wbudowanie krawezników kamiennych 20x30cm na ławie betonowej z oporem i podsypce\ncementowo-piaskowej, spoiny wypelniane zaprawa","1m","20+12+6+4",42,0,0,42]
[46,null,"Wbudowanie krawezników kamiennych 20x30cm na ławie betonowej z oporem i podsypce\ncementowo-piaskowej, spoiny wypelniane zaprawa - krawężniki zanikające","1m","4+4",8,0,0,8]
[null,"M-28.02.03","Kapa chodnikowa"]
[47,null,"Montaż zbrojenia z pretów o srednicy od 8 do 14mm - zbrojenie kap","1t / 1Mg",2.1150000000000002,{"$f":"I97","v":2.1150000000000002},0,{"$f":"G97*F97","v":0},2.1150000000000002]
[48,null,"Betonowanie kap chodnikowych żelbetowych betonem C25/30 , przy użyciu pompy na samochodzie, w deskowaniu tradycyjnym, z zagęszczeniem betonu wibratorem pogrążalnym /dowóz betonu transportem zewnętrznym wraz z deskowaniem tradycyjnym gzymsów","1m3","2*(0,17)*5,90+2*(0,17)*1,8+12,0*(0,32+0,28)",9.8180000000000014,0,0,9.8180000000000014]
[49,null,"Wykonanie dylatacji kap chodnikowych poprzez nacięcie betonu gr. 6-8mm na głębokość 25mm wraz z wypełnieniem szczeliny elastyczną żywicą i wzmocnieniem paskiem z maty z włókna szklanego","1m","2*(1,45+1,25)",5.4,0,0,5.4]
[50,null,"Uszczelnienie szczeliny dylatacyjnej gzymsu kitem poliuretanowym na wałku","1m","4*(1,45+1,25)",10.8,0,0,10.8]
[51,null,"Montaz gzymsów żelbetowych prefabrykowanych o masie do 100kg z betonu polimerowego - prefabrykat wysokości 60cm","1m","23,70+15,30",39,0,0,39]
[null,"M-28.05.01","Bariery ochronne stalowe"]
[52,null,"Montaż barier ochronnych na dojazdach - jednostronne o parametrach H2, W2, B","1m","4+11",{"$f":"I103","v":15},0,{"$f":"G103*F103","v":0},15]
[53,null,"Montaż barieroporęczy wraz z pochwytem o parametrach H2, W2, B na obiekcie","1m",24,24,0,0,24]
[null,"M-28.05.02","Wykonanie balustrady stalowej"]
[54,null,"Montaż balustrady z profili zamkniętych wraz z zabezpieczeniem antykorozyjnym poprzec cynkowanie ogniowe","1kg",750,{"$f":"I106","v":750},0,{"$f":"G106*F106","v":0},750]
[null,"M-29.00.00","ROBOTY PRZYOBIEKTOWE"]
[null,"M-29.05.01","Płyty przejściowe"]
[55,null,"Betonowanie podbetonu pod płytę przejściową i skrzydła C12/15","1m3","2*3,9*0,1*8,2",{"$f":"I109","v":6.3959999999999999},0,{"$f":"G109*F109","v":0},6.3959999999999999]
[56,null,"Przygotowanie i montaż zbrojenia płyty przejściowej i skrzydeł - stal A-IIIN (RB500W)","1t / 1Mg","2*1,2",2.4,0,0,2.4]
[57,null,"Przygotowanie na budowie zbrojenia z prętów o średnicy od 12 do 20mm","1t / 1Mg","2*1,2",2.4,0,0,2.4]
[58,null,"Betonowanie płyty przejściowej i skrzydeł z betonu C25/30 w deskowaniu tradycyjnym","1m3","2*11",22,0,0,22]
[null,"M-29.15.02","Umocnienie powierzchni kostką betonową"]
[59,null,"Umocnienia z kostki brukowej betonowej grubości 8cm na podsypce cementowo-piaskowej z wypełnieniem spoin piaskiem","1m2","4*7*1,5",{"$f":"I114","v":42},0,{"$f":"G114*F114","v":0},42]
[60,null,"Wykonanie drobnych elementów betonowych - ukształtowanie wlotów ścieków","1m2",1,1,0,0,1]
[61,null,"Humusowanie skarp z obsianiem przy grubosci warstwy humusu 5cm","1m2","4*7*1",28,0,0,28]
[null,"M-30.00.00","ROBOTY NAWIERZCHNIOWE i ZABEZPIECZAJĄCE"]
[null,"M-30.01.02","Nawierzchnia jezdni mostowej z asfaltu twardolanego"]
[62,null,"Wykonanie warstwy ścieralnej z asfaltu twardolanego grubości po zagęszczeniu 5cm","1m2",90,{"$f":"I119","v":90},0,{"$f":"G119*F119","v":0},90]
[63,null,"Uszczelnienie styku nawierzchni z krawężnikiem elastyczną taśmą uszczelniającą","1m","2*12,40",24.8,0,0,24.8]
[64,null,"Nawierzchnia z mieszanki asfaltu lanego - warstwa wiążąca o grubości 4cm","1m2",90,90,0,0,90]
[65,null,"Wzmocnienie nawierzchni geosyntetykami nad dylatacją","1m","4*7",28,0,0,28]
[null,"M-30.05.02","Nawierzchnia chodnika"]
[66,null,"Wykonanie nawierzchnio-izolacji z kationowej modyfikowanej polimerami emulsji bitumicznej gr. 5mm","1m2","2*4,45+20,5+17,80+2*1,2",{"$f":"I124","v":49.6},0,{"$f":"G124*F124","v":0},49.6]
[null,null,null,null,"RAZEM",null,null,{"$f":"SUM(H5:H124)","v":0}]
[null,null,null,null,"Podatek VAT 23%",null,null,{"$f":"0.23*H125","v":0}]
[null,null,null,null,"Łącznie brutto",null,null,{"$f":"H125+H126","v":0}]

{"sheet":"TER","index":1,"n_rows":131,"n_cols":7,"rows_kept":131,"cut":false,"hidden":false,"merged":[[128,3,128,5],[129,3,129,5],[130,3,130,5],[91,0,94,0],[91,1,94,1],[91,5,93,5],[91,6,93,6],[47,0,52,0],[47,1,52,1],[47,5,51,5],[35,0,38,0],[35,1,38,1],[35,5,37,5],[35,6,37,6],[47,6,51,6],[14,6,16,6],[11,2,11,6],[28,0,32,0],[28,1,32,1],[28,5,31,5],[28,6,31,6],[19,0,20,0],[19,1,20,1],[14,0,17,0],[14,1,17,1],[14,5,16,5]]}
[null,null,"TABELA ELEMENTÓW ROZLICZENIOWYCH"]
[null,"Budowa :  ","NAPRAWA IZOLACJI MOSTU W CIĄGU DW NR 181 W MIEJSCOWOŚCI CHEŁST"]
[null,"Obiekt :  ","BRANŻA DROGOWO-MOSTOWA "]
[null,"A d r e s :"]
[null,"Opis robót :","REMONT MOSTU WRAZ Z DOJAZDAMI"]
[]
["LP","Pozycja STWiORB","Rodzaj robót","Jednostka obmiarowa","Ilość jednostek","Cena [zł]","Wartość [zł]"]
[null,"D-01.00.00","ROBOTY PRZYGOTOWAWCZE"]
[null,"D-01.01.01","Odtworzenie trasy i punktów wysokościowych"]
[1,"kalkulacja własna","Roboty pomiarowe przy liniowych robotach ziemnych wraz z robotami pomiarowymi obiektu oraz z inwentaryzacją powykonawczą","1kpl.",1,null,{"$f":"ROUND(F10*E10,2)","v":0}]
[null,"D-01.02.03","Wyburzenie obiektów budowlanych i inżynierskich"]
[null,null,"UWAGA: Podane ilości i zakres robót rozbiórkowych mają charakter szacunkowy \nBalustrad oraz destrukt asfaltowy należy przetransportować do Rejonu Dróg Wojewódzkich w Czarnkowie \n(ul. Gdańska 56; 64-700 Czarnków). Pozostałe materiały należy zutylizować."]
[2,null,"Demontaż stalowych elementów wyposażenia - wykopanie i/lub użycie palnika acetylenowo-tlenowego balustrady","1t / 1Mg",2.2949999999999999,null,{"$f":"ROUND(F13*E13,2)","v":0}]
[3,null,"Reczny zaladunek i wyladunek materialów budowlanych na samochody lub przyczepy skrzyniowe - transport elementów mostowych stalowych","1t / 1Mg",2.2949999999999999,null,{"$f":"ROUND(F14*E14,2)","v":0}]
[4,null,"Rozebranie elementów żelbetowych"]
[null,null," - kapy","1m3",9.4240000000000013]
[null,null," - gzyms skrzydła ","1m3",1.1199999999999999]
[null,null,"RAZEM","1m3",10.544,null,{"$f":"ROUND(F18*E18,2)","v":0}]
[5,null,"Rozbiórka izolacji z papy","1m2",115.80000000000001,null,{"$f":"ROUND(F19*E19,2)","v":0}]
[6,null,"Rozbiórka elementów konstrukcji betonowych niezbrojonych"]
[null,null," - beton ochronny 6cm","1m3",6.9480000000000004,null,{"$f":"ROUND(F21*E21,2)","v":0}]
[7,null,"Rozebranie mechaniczne nawierzchni na obiekcie (przyjęto warstwy bitumiczne gr. 9cm)","1m3",7.8119999999999994,null,0]
[8,null,"Rozebranie mechaniczne nawierzchni z mieszanek mineralno-bitumicznych: dodatek za każdy 1 cm grubości ponad 9 cm   (Krotność= 3,5)","1m3",3.0380000000000003,null,0]
[9,null,"Rozebranie mechaniczne konstrukcji nawierzchni na dojazdach (przyjęto warstwy bitumiczne gr. 15cm)","1m3",16.8,null,0]
[10,null,"Rozebranie mechaniczne nawierzchni z mieszanek mineralno-bitumicznych: dodatek za każdy 1 cm  (Krotność= 5)","1m3",5.6000000000000005,null,0]
[11,null,"Rozbiórka mechaniczna podbudowy o grubości 20cm z tłucznia lub żużla wielkopiecowego","1m3",22.400000000000002,null,0]
[12,null,"Rozbiórka mechaniczna podbudowy z tłucznia lub żużla wielkopiecowego - dalsze 2cm grubości   (Krotność= 5)","1m3",2.2400000000000002,null,0]
[13,null,"Frezowanie nawierzchni na dojeździe do obiektu","1m3",3.36,null,0]
[14,null,"Wywiezienie gruzu z rozbiórek samochodem samowyładowczym z załadunkiem mechanicznym na odległość 15km wraz z opłatą za utylizację gruzu","1m3"]
[null,null," - żelbet + beton","1m3",22.75]
[null,null," - izolacja z papy","1m3",1.1579999999999999]
[null,null," - destrukt asfaltowy i podbudowa","1m3",50.379999999999995]
[null,null,"RAZEM","1m3",74.287999999999997,null,{"$f":"ROUND(F33*E33,2)","v":0}]
[null,"D-02.00.00","ROBOTY ZIEMNE"]
[null,"D-02.01.01","Wykonanie wykopów w gruntach kat. I-IV z zabezpieczeniem"]
[15,null,"Roboty ziemne ręczne z transportem urobku samochodami samowyładowczymi o ładowności 5-10 t na odległość do 1 km: grunt kat. III","1m3"]
[null,null," - wykopy przy obiekcie","1m3",89.44]
[null,null," - wykopy pod krawężnik","1m3",12]
[null,null,"RAZEM","1m3",101.44,null,{"$f":"ROUND(F39*E39,2)","v":0}]
[null,"D-02.03.01","Wykonanie nasypów"]
[16,null,"Formowanie i zagęszczanie nasypów z ziemi dowożonej samochodami samowyładowczymi: grunt kat. III-IV + zakup kruszywa   \n - zasypka za przyczółkiem","1m3",20.295999999999999,null,{"$f":"ROUND(F41*E41,2)","v":0}]
[17,null,"Zagęszczenie uprzednio rozplantowanego warstwami gruntu w nasypie zagęszczarkami, w gruncie sypkim,\nkategorii : I-III","1m3",20.295999999999999,null,{"$f":"ROUND(F42*E42,2)","v":0}]
[18,null,"Umocnienie poboczy klińcem, warstwa gr. 10cm","1m3",12.8,null,{"$f":"ROUND(F43*E43,2)","v":0}]
[null,"D-04.00.00","PODBUDOWY"]
[null,"D-04.00.00","Koryto z profilowaniem i zagęszczeniem"]
[19,null,"Ręczne wykonanie koryt głębokości 20cm na całej szerokości jezdni i chodników w gruncie kategorii I-II","1m2",137.6,null,{"$f":"ROUND(F46*E46,2)","v":0}]
[null,"D-04.03.01","Oczyszczenie i skropienie warstw konstrukcyjnych"]
[20,null,"Oczyszczenie mechaniczne nawierzchni drogowej i skropienie nawierzchni drogowych","1m2"]
[null,null," - podbudowa z kruszywa","1m2",137.6]
[null,null," - podbudowa zasadnicza","1m2",236.6]
[null,null," - warstwa wiążąca","1m2",290.5]
[null,null," - sfrezowana warstwa bitumiczna","1m2",7]
[null,null,"RAZEM","1m2",671.7,null,{"$f":"ROUND(F53*E53,2)","v":0}]
[null,"D-04.05.01","Warstwa wzmacniająca podłoże z gruntu lub kruszywa stabilizowango cementem"]
[21,null,"Podbudowy z kruszywa łamanego stabilizowanego mechanicznie 0/31,5mm - podbudowa grubości 20cm pod nawierzchnię jezdni","1m2",118.4,null,{"$f":"ROUND(F55*E55,2)","v":0}]
[null,"D-04.04.02","Podbudowa z kruszywa stabilizowanego mechanicznie"]
[22,null,"Podbudowy z kruszywa łamanego stabilizowanego mechanicznie 0/31,5mm - podbudowa grubości 20cm","1m2",118.4,null,{"$f":"ROUND(F57*E57,2)","v":0}]
[null,"D-04.07.01","Podbudowa zasadnicza z betonu asfaltowego"]
[23,null,"Podbudowy z betonu asfaltowego AC 16P o grubości warstwy 7cm wykony-wane mechanicznie","1m3",8.288000000000002,null,{"$f":"ROUND(F59*E59,2)","v":0}]
[null,"M-05.00.00","NAWIERZCHNIE"]
[null,"M-05.03.05","Nawierzchnie z asfaltu twardolanego - warstwa wiążąca"]
[24,null,"Warstwa wiążąca z asfaltu twardolanego o grubości 4cm","1m2",207.20000000000002,null,{"$f":"ROUND(F62*E62,2)","v":0}]
[25,null,"Ułożenie siatki zbrojeniowej z włókien szklanych wstępnie przesączona asfaltem o wytrzymałości na rozciąganie > 100 kN/m i maksymalnym wydłużeniu przy zerwaniu 3% - siatka na połączeniu starej i nowej nawierzchni oraz dylatacji","1m2",29.6,null,{"$f":"ROUND(F63*E63,2)","v":0}]
[null,"M-05.03.13","Nawierzchnie z asfaltu twardolanego - warstwa ścieralna"]
[26,null,"Warstwa ścieralna z asfaltu twardolanego o grubości 5cm","1m2",207.20000000000002,null,{"$f":"ROUND(F65*E65,2)","v":0}]
[null,"M-05.03.13","Nawierzchnia jezdni mostowej z asfaltu twardolanego"]
[27,null,"Wykonanie warstwy ścieralnej z asfaltu twardolanego grubości po zagęszczeniu 5cm","1m2",90,null,{"$f":"ROUND(F67*E67,2)","v":0}]
[28,null,"Uszczelnienie styku nawierzchni z krawężnikiem elastyczną taśmą uszczelniającą","1m",24.8,null,{"$f":"ROUND(F68*E68,2)","v":0}]
[29,null,"Nawierzchnia z mieszanki asfaltu lanego - warstwa wiążąca o grubości 4cm","1m2",90,null,{"$f":"ROUND(F69*E69,2)","v":0}]
[30,null,"Wzmocnienie nawierzchni geosyntetykami nad dylatacją","1m",28,null,{"$f":"ROUND(F70*E70,2)","v":0}]
[null,"D-07.00.00","URZĄDZENIA BEZPIECZEŃSTWA RUCHU"]
[null,"D-07.01.01","Oznakowanie poziome"]
[31,null,"Oznakowanie poziome jezdni farba: linie segregacyjne i krawędziowe ciągłe malowane ręcznie, linia w osi","1m2",4.9799999999999995,null,{"$f":"ROUND(F73*E73,2)","v":0}]
[32,null,"Organizacja ruchu w czasie prowadzenia robót (wykonywanie robót połówkowo)","ryczałt",1,null,{"$f":"ROUND(F74*E74,2)","v":0}]
[null,"M-23.00.00","USTRÓJ NOŚNY"]
[null,"M-23.51.02","Wzmocnienie przęsła betonowego poprzez pogrubienie płyty pomostu"]
[33,null,"Wykonanie warstwy sczepnej na belkach Gromnik","1m2",115.80000000000001,null,{"$f":"ROUND(F77*E77,2)","v":0}]
[34,null,"Przygotowanie i montaż zbrojenia płyty pomostu wraz z wywierceniem otworów i wklejeniem łączników - stal A-IIIN","1t / 1Mg",0.53100000000000003,null,0]
[35,null,"Przygotowanie na budowle zbrojenia z prętów o średnicy 10-14mm dla płyt współpracujących z dźwigarami stalowymi lub prefabrykowanymi","1t / 1Mg",2.9119999999999999,null,0]
[36,null,"Przygotowanie na budowle zbrojenia z prętów o średnicy 16-32mm dla płyt współpracujących z dźwigarami stalowymi lub prefabrykowanymi","1t / 1Mg",1.569,null,0]
[37,null,"Betonowanie nadbetonu z betonu C25/30 w deskowaniu tradycyjnym","1m3",22.262,null,0]
[38,null,"Czyszczenie strumieniowo-ścierne powierzchni betonowej ","1m2",121.50000000000001,null,0]
[39,null,"Zabezpieczenie istniejących kabli energetycznych rurami ochronnymi dwudzielnymi z PCW o średnicy do 200mm","m",78.400000000000006,null,0]
[40,null,"Montaż kotew kap chodnikowych","szt.",52,null,0]
[null,"M-26.00.00","USTRÓJ NOŚNY"]
[null,"M-26.01.02","Odwodnienie izolacji pomostu obiektu mostowego"]
[41,null,"Wiercenie otworów o średnicy 60mm wiertnicami diamentowymi w konstrukcjach żelbetowych - Wiercenie otworów pod sączki","1cm",275,null,{"$f":"ROUND(F87*E87,2)","v":0}]
[42,null,"Sączki odwadniające izolację płyty pomostu średnicy 50mm z tworzywa","1szt.",8,null,{"$f":"ROUND(F88*E88,2)","v":0}]
[43,null,"Wykonanie warstwy drenującej podłużnej z kruszywa o uziarnieniu 4-8mm z lepiszczem żywicznym - podłużny","1m2",3.7199999999999998,null,{"$f":"ROUND(F89*E89,2)","v":0}]
[null,"M-27.00.00","HYDROIZOLACJA"]
[null,"M-27.01.01","Izolacja bitumiczna \"na zimno\""]
[44,null,"Wykonanie epoksydowo-bitumicznej hydroizolacji powierzchni betonowych podpór \n- na zimno (3 warstwy)","1m2"]
[null,null," - odsłonięte ściany i skrzydła przyczółków","1m2",22.5]
[null,null," - płyta przejściowa","1m2",10.32]
[null,null,"RAZEM","1m2",32.82,null,{"$f":"ROUND(F95*E95,2)","v":0}]
[null,"M-27.02.01","Izolacja z papy zgrzewalnej"]
[45,null,"wykonanie izolacji z papy termozgrzewalnej - płyta pomostu i płyta przejściowa","1m2",161.4,null,{"$f":"ROUND(F97*E97,2)","v":0}]
[46,null,"Wykonanie warstwy ochronnej pod kapami chodnikowymi z papy asfaltowej","1m2",30,null,{"$f":"ROUND(F98*E98,2)","v":0}]
[null,"M-28.00.00","WYPOSAŻENIE POMOSTU"]
[null,"M-28.01.01","Krawężniki kamienne"]
[47,null,"Montaż krawężników 18x20cm z kotwieniem prętami wklejanymi w wywiercone otwory wraz z uszczelnieniem styków","1m",24.8,null,{"$f":"ROUND(F101*E101,2)","v":0}]
[48,null,"Wbudowanie krawężników kamiennych 18x20cm na ławie betonowej z oporem i podsypce\ncementowo-piaskowej, spoiny wypełniane zaprawa","1m",42,null,{"$f":"ROUND(F102*E102,2)","v":0}]
[49,null,"Wbudowanie krawężników kamiennych 18x20cm na ławie betonowej z oporem i podsypce\ncementowo-piaskowej, spoiny wypełniane zaprawa - krawężniki zanikające","1m",8,null,{"$f":"ROUND(F103*E103,2)","v":0}]
[null,"M-28.02.03","Kapa chodnikowa"]
[50,null,"Montaż zbrojenia z prętów o średnicy od 8 do 14mm - zbrojenie kap","1t / 1Mg",2.1150000000000002,null,{"$f":"ROUND(F105*E105,2)","v":0}]
[51,null,"Betonowanie kap chodnikowych żelbetowych betonem C25/30 , przy użyciu pompy na samochodzie, w deskowaniu tradycyjnym, z zagęszczeniem betonu wibratorem pogrążalnym /dowóz betonu transportem zewnętrznym wraz z deskowaniem tradycyjnym gzymsów","1m3",9.8180000000000014,null,{"$f":"ROUND(F106*E106,2)","v":0}]
[52,null,"Wykonanie dylatacji kap chodnikowych poprzez nacięcie betonu gr. 6-8mm na głębokość 25mm wraz z wypełnieniem szczeliny elastyczną żywicą i wzmocnieniem paskiem z maty z włókna szklanego","1m",5.4,null,{"$f":"ROUND(F107*E107,2)","v":0}]
[53,null,"Uszczelnienie szczeliny dylatacyjnej gzymsu kitem poliuretanowym na wałku","1m",10.8,null,{"$f":"ROUND(F108*E108,2)","v":0}]
[54,null,"Montaż gzymsów żelbetowych prefabrykowanych o masie do 100kg z betonu polimerowego - prefabrykat wysokości 60cm","1m",39,null,{"$f":"ROUND(F109*E109,2)","v":0}]
[null,"M-28.05.01","Bariery ochronne stalowe"]
[55,null,"Montaż barier ochronnych na dojazdach - jednostronne o parametrach H2, W2, B","1m",20,null,{"$f":"ROUND(F111*E111,2)","v":0}]
[56,null,"Montaż barieroporęczy wraz z pochwytem o parametrach H2, W2, B na obiekcie","1m",24,null,{"$f":"ROUND(F112*E112,2)","v":0}]
[null,"M-28.05.02","Wykonanie balustrady stalowej"]
[57,null,"Montaż balustrady z profili zamkniętych wraz z zabezpieczeniem antykorozyjnym poprzez cynkowanie ogniowe","1kg",750,null,{"$f":"ROUND(F114*E114,2)","v":0}]
[null,"M-29.00.00","ROBOTY PRZYOBIEKTOWE"]
[null,"M-29.05.01","Płyty przejściowe"]
[58,null,"Betonowanie podbetonu pod płytę przejściową i skrzydła C12/15","1m3",6.3959999999999999,null,{"$f":"ROUND(F117*E117,2)","v":0}]
[59,null,"Montaż zbrojenia płyty przejściowej i skrzydeł - stal RB500W","1t / 1Mg",2.4,null,{"$f":"ROUND(F118*E118,2)","v":0}]
[60,null,"Przygotowanie na budowie zbrojenia z prętów o średnicy od 12 do 20mm","1t / 1Mg",2.4,null,{"$f":"ROUND(F119*E119,2)","v":0}]
[61,null,"Betonowanie płyty przejściowej i skrzydeł z betonu C25/30 w deskowaniu tradycyjnym","1m3",22,null,{"$f":"ROUND(F120*E120,2)","v":0}]
[null,"M-29.15.02","Umocnienie powierzchni kostką betonową"]
[62,null,"Umocnienia z kostki brukowej betonowej grubości 8cm na podsypce cementowo-piaskowej z wypełnieniem spoin piaskiem","1m2",42,null,{"$f":"ROUND(F122*E122,2)","v":0}]
[63,null,"Wykonanie drobnych elementów betonowych - ukształtowanie wlotów ścieków","1m2",1,null,{"$f":"ROUND(F123*E123,2)","v":0}]
[64,null,"Humusowanie skarp z obsianiem przy grubości warstwy humusu 5cm","1m2",28,null,{"$f":"ROUND(F124*E124,2)","v":0}]
[65,null,"Wykonanie odwodnienia pod chodnikowego wg KPED 01.31","1m2",1,null,{"$f":"ROUND(F125*E125,2)","v":0}]
[null,"M-30.00.00","ROBOTY NAWIERZCHNIOWE i ZABEZPIECZAJĄCE"]
[null,"M-30.05.02","Nawierzchnia chodnika"]
[66,null,"Wykonanie nawierzchnio-izolacji z kationowej modyfikowanej polimerami emulsji bitumicznej gr. 5mm","1m2",49.6,null,{"$f":"ROUND(F128*E128,2)","v":0}]
[null,null,null,"RAZEM",null,null,{"$f":"SUM(G10:G128)","v":0}]
[null,null,null,"Podatek VAT 23%",null,null,{"$f":"0.23*G129","v":0}]
[null,null,null,"Łącznie brutto",null,null,{"$f":"G129+G130","v":0}]